[Event "Delancey UK Schools 2019 U14"]
[Site "Daventry"]
[Date "2019.09.24"]
[Round "5.8"]
[White "Bansal, Saahil"]
[Black "Wang, Susie"]
[Result "1-0"]
[ECO "D33"]
[WhiteElo "1655"]
[BlackElo "1515"]
[Annotator "NA"]
[PlyCount "73"]
[EventDate "2019.09.24"]
[EventCountry "GBR"]
[SourceTitle "playchess.com"]
[Source "ChessBase"]
[SourceQuality "1"]
[TimeControl "40/5400+30:1800+30"]

1. d4 {[%emt 1:10:12]} Nf6 {[%emt 1:10:12]} 2. c4 {[%emt 0:00:21]} c5 {[%emt 0:00:21]} 3. Nf3 {[%emt 0:00:23]} e6 {[%emt 0:01:50]} 4. Nc3 {[%emt 0:00:22]} d5 {[%emt 0:00:51]} 5. cxd5 {[%emt 0:00:22]} exd5 {[%emt 0:00:26]} 6. g3 {[%emt 0:00:21]} Be6 {[%emt 0:00:50]} 7. Bg2 {[%emt 0:00:23]} Nc6 {[%emt 0:00:37]} 8. O-O {[%emt 0:00:24]} cxd4 {[%emt 0:01:15]} 9. Nxd4 {[%emt 0:00:28]} Nxd4 {[%emt 0:00:26]} 10. Qxd4 {[%emt 0:00:24]} Qa5 {[%emt 0:03:58]} 11. Bd2 {[%emt 0:01:59]} Qc5 {[%emt 0:03:13]} 12. Be3 {[%emt 0:01:48]} b6 {[%emt 0:03:05]} 13. Qa4+ {[%emt 0:02:04]} Bd7 {[%emt 0:02:18]} 14. Bxc5 {[%emt 0:00:40]} Bxa4 {[%emt 0:00:28]} 15. Bxf8 {[%emt 0:00:22]} Rxf8 {[%emt 0:03:42]} 16. Nxa4 {[%emt 0:00:21]} Rd8 {[%emt 0:00:38]} 17. Nc3 {[%emt 0:00:36]} d4 {[%emt 0:00:39]} 18. Nb5 {[%emt 0:00:23]} a6 {[%emt 0:00:38]} 19. Nc7+ {[%emt 0:00:33]} Ke7 {[%emt 0:00:21]} 20. Nxa6 {[%emt 0:00:23]} Nd5 {[%emt 0:00:38]} 21. Bxd5 {[%emt 0:00:35]} Rxd5 {[%emt 0:00:22]} 22. Nb4 {[%emt 0:00:28]} Rb5 {[%emt 0:00:27]} 23. Nc6+ {[%emt 0:00:33]} Kf6 {[%emt 0:00:35]} 24. Nxd4 {[%emt 0:00:25]} Rxb2 {[%emt 0:00:22]} 25. Rfb1 {[%emt 0:00:33]} Rd2 {[%emt 0:00:41]} 26. Rxb6+ {[%emt 0:00:22]} Ke7 {[%emt 0:00:45]} 27. Nf5+ {[%emt 0:01:07]} Kd7 {[%emt 0:00:23]} 28. Nxg7 {[%emt 0:00:27]} Rxe2 {[%emt 0:00:33]} 29. Nh5 {[%emt 0:00:35]} Kc7 {[%emt 0:00:48]} 30. Rf6 {[%emt 0:00:44]} Rd8 {[%emt 0:00:48]} 31. Rxf7+ {[%emt 0:00:25]} Kb6 {[%emt 0:00:25]} 32. Nf4 {[%emt 0:00:27]} Rc2 {[%emt 0:00:36]} 33. Rb1+ {[%emt 0:00:28]} Kc6 {[%emt 0:00:42]} 34. Rf6+ {[%emt 0:00:25]} Kd7 {[%emt 0:00:42]} 35. Rd1+ {[%emt 0:00:25]} Ke7 {[%emt 0:00:25]} 36. Re6+ {[%emt 0:00:22]} Kf7 {[%emt 0:00:25]} 37. Rxd8 {[%emt 0:00:21]} 1-0

[Event "Delancey UK Schools 2019 U14"]
[Site "Daventry"]
[Date "2019.09.24"]
[Round "5.9"]
[White "Saidmurodov, Shahjahon"]
[Black "Weersing, Abigail Riis"]
[Result "0-1"]
[ECO "C10"]
[WhiteElo "1782"]
[BlackElo "1734"]
[Annotator "NA"]
[PlyCount "148"]
[EventDate "2019.09.24"]
[EventCountry "GBR"]
[SourceTitle "playchess.com"]
[Source "ChessBase"]
[SourceQuality "1"]
[TimeControl "40/5400+30:1800+30"]

1. e4 {[%emt 1:10:14]} e6 {[%emt 1:10:11]} 2. Nc3 {[%emt 0:00:22]} d5 {[%emt 0:00:23]} 3. Nf3 {[%emt 0:00:22]} dxe4 {[%emt 0:00:33]} 4. Nxe4 {[%emt 0:00:23]} Nd7 {[%emt 0:00:24]} 5. d4 {[%emt 0:00:21]} Ngf6 {[%emt 0:00:23]} 6. Nxf6+ {[%emt 0:00:30]} Nxf6 {[%emt 0:00:23]} 7. Bd3 {[%emt 0:00:20]} Bd6 {[%emt 0:00:40]} 8. O-O {[%emt 0:00:27]} O-O {[%emt 0:00:38]} 9. Ne5 {[%emt 0:00:22]} c5 {[%emt 0:00:55]} 10. dxc5 {[%emt 0:00:28]} Bxe5 {[%emt 0:00:44]} 11. Bg5 {[%emt 0:00:39]} Qc7 {[%emt 0:00:39]} 12. Qf3 {[%emt 0:01:27]} Qxc5 {[%emt 0:01:30]} 13. Rae1 {[%emt 0:01:46]} Bxh2+ {[%emt 0:00:36]} 14. Kxh2 {[%emt 0:00:34]} Qxg5 {[%emt 0:00:22]} 15. Kg1 {[%emt 0:00:41]} Qh4 {[%emt 0:01:17]} 16. Be2 {[%emt 0:01:36]} e5 {[%emt 0:01:02]} 17. Qc3 {[%emt 0:01:40]} e4 {[%emt 0:03:04]} 18. f3 {[%emt 0:00:58]} Qg3 {[%emt 0:01:37]} 19. Bc4 {[%emt 0:02:45]} Bh3 {[%emt 0:00:41]} 20. Re2 {[%emt 0:02:24]} Bf5 {[%emt 0:07:16]} 21. Re3 {[%emt 0:03:15]} Qg6 {[%emt 0:02:04]} 22. fxe4 {[%emt 0:01:02]} Nxe4 {[%emt 0:01:21]} 23. Qe5 {[%emt 0:03:52]} Nd6 {[%emt 0:01:40]} 24. Bb5 {[%emt 0:03:46]} a6 {[%emt 0:01:35]} 25. Rg3 {[%emt 0:01:14]} Qh6 {[%emt 0:01:23]} 26. Ba4 {[%emt 0:00:39]} Rad8 {[%emt 0:01:00]} 27. c3 {[%emt 0:00:56]} Bg6 {[%emt 0:00:26]} 28. Rh3 {[%emt 0:00:45]} Qd2 {[%emt 0:00:50]} 29. Rd1 {[%emt 0:00:26]} Nc4 {[%emt 0:00:33]} 30. Qg3 {[%emt 0:00:35]} Qe3+ {[%emt 0:00:26]} 31. Qxe3 {[%emt 0:00:22]} Rxd1+ {[%emt 0:00:22]} 32. Bxd1 {[%emt 0:00:21]} Nxe3 {[%emt 0:00:21]} 33. Rxe3 {[%emt 0:00:22]} Rd8 {[%emt 0:00:25]} 34. Kf2 {[%emt 0:00:21]} h6 {[%emt 0:00:27]} 35. Bb3 {[%emt 0:00:56]} Rd2+ {[%emt 0:00:23]} 36. Kg3 {[%emt 0:00:21]} Rxb2 {[%emt 0:00:29]} 37. Re8+ {[%emt 0:00:25]} Kh7 {[%emt 0:00:21]} 38. Re7 {[%emt 0:00:22]} Rd2 {[%emt 0:00:24]} 39. c4 {[%emt 0:00:40]} Rd3+ {[%emt 0:00:22]} 40. Kf2 {[%emt 0:00:21]} b5 {[%emt 0:00:55]} 41. c5 {[%emt 0:30:38]} Rc3 {[%emt 0:30:33]} 42. Rc7 {[%emt 0:00:45]} a5 {[%emt 0:00:23]} 43. Bd5 {[%emt 0:00:26]} Rd3 {[%emt 0:00:35]} 44. Bxf7 {[%emt 0:00:39]} Bxf7 {[%emt 0:00:31]} 45. Rxf7 {[%emt 0:00:21]} Rd2+ {[%emt 0:00:21]} 46. Kf3 {[%emt 0:00:23]} Rxa2 {[%emt 0:00:22]} 47. Rb7 {[%emt 0:00:24]} b4 {[%emt 0:00:27]} 48. c6 {[%emt 0:00:22]} Rc2 {[%emt 0:00:24]} 49. c7 {[%emt 0:00:22]} b3 {[%emt 0:00:26]} 50. Kf4 {[%emt 0:01:04]} b2 {[%emt 0:00:26]} 51. Rxb2 {[%emt 0:00:33]} Rxc7 {[%emt 0:00:24]} 52. Rb8 {[%emt 0:00:25]} Ra7 {[%emt 0:00:27]} 53. Rb3 {[%emt 0:00:22]} a4 {[%emt 0:00:22]} 54. Ra3 {[%emt 0:00:21]} Kg6 {[%emt 0:00:24]} 55. g4 {[%emt 0:00:22]} Kf6 {[%emt 0:00:23]} 56. Ke4 {[%emt 0:00:24]} Kg5 {[%emt 0:00:33]} 57. Kf3 {[%emt 0:00:27]} h5 {[%emt 0:00:33]} 58. gxh5 {[%emt 0:00:25]} Kxh5 {[%emt 0:00:21]} 59. Kg3 {[%emt 0:00:21]} g6 {[%emt 0:00:34]} 60. Kf4 {[%emt 0:00:28]} g5+ {[%emt 0:00:27]} 61. Kg3 {[%emt 0:00:31]} g4 {[%emt 0:00:36]} 62. Kg2 {[%emt 0:00:28]} Kg5 {[%emt 0:00:22]} 63. Kg3 {[%emt 0:00:21]} Kf5 {[%emt 0:00:26]} 64. Kf2 {[%emt 0:00:28]} Kf4 {[%emt 0:00:27]} 65. Kg2 {[%emt 0:00:26]} Ke4 {[%emt 0:01:02]} 66. Kf2 {[%emt 0:00:28]} Rf7+ {[%emt 0:01:00]} 67. Ke2 {[%emt 0:01:08]} Ra7 {[%emt 0:00:21]} 68. Kf2 {[%emt 0:00:21]} Kd5 {[%emt 0:00:44]} 69. Ke2 {[%emt 0:00:27]} Kc5 {[%emt 0:00:24]} 70. Kd2 {[%emt 0:01:00]} Kb4 {[%emt 0:00:23]} 71. Rg3 {[%emt 0:00:27]} Rd7+ {[%emt 0:00:23]} 72. Kc2 {[%emt 0:00:22]} Rd4 {[%emt 0:00:23]} 73. Kb2 {[%emt 0:00:23]} a3+ {[%emt 0:00:29]} 74. Ka2 {[%emt 0:00:55]} Rc4 {[%emt 0:01:01]} 0-1

[Event "Delancey UK Schools 2019 U14"]
[Site "Daventry"]
[Date "2019.09.24"]
[Round "5.10"]
[White "Akeya-Price, Robert"]
[Black "Dicen, Imogen"]
[Result "1-0"]
[ECO "A80"]
[WhiteElo "1892"]
[BlackElo "1509"]
[Annotator "NA"]
[PlyCount "143"]
[EventDate "2019.09.24"]
[EventCountry "GBR"]
[SourceTitle "playchess.com"]
[Source "ChessBase"]
[SourceQuality "1"]
[TimeControl "40/5400+30:1800+30"]

1. d4 {[%emt 1:10:13]} f5 {[%emt 1:10:14]} 2. Bg5 {[%emt 0:00:48]} g6 {[%emt 0:00:27]} 3. h4 {[%emt 0:01:19]} Bg7 {[%emt 0:00:39]} 4. Nc3 {[%emt 0:01:57]} b6 {[%emt 0:00:34]} 5. e4 {[%emt 0:01:52]} fxe4 {[%emt 0:01:19]} 6. Nxe4 {[%emt 0:00:23]} Bb7 {[%emt 0:00:34]} 7. Bd3 {[%emt 0:00:56]} Nc6 {[%emt 0:01:01]} 8. c3 {[%emt 0:03:41]} d5 {[%emt 0:01:31]} 9. Ng3 {[%emt 0:00:34]} Qd6 {[%emt 0:01:06]} 10. h5 {[%emt 0:03:40]} O-O-O {[%emt 0:01:39]} 11. hxg6 {[%emt 0:00:37]} hxg6 {[%emt 0:00:29]} 12. Rxh8 {[%emt 0:00:26]} Bxh8 {[%emt 0:00:23]} 13. Qg4+ {[%emt 0:00:39]} Kb8 {[%emt 0:00:32]} 14. Bf4 {[%emt 0:00:50]} e5 {[%emt 0:00:39]} 15. dxe5 {[%emt 0:01:13]} Bxe5 {[%emt 0:00:36]} 16. Bg5 {[%emt 0:01:43]} Re8 {[%emt 0:00:42]} 17. O-O-O {[%emt 0:00:26]} Bc8 {[%emt 0:01:57]} 18. Qh4 {[%emt 0:02:10]} Nce7 {[%emt 0:03:19]} 19. f4 {[%emt 0:00:52]} Bf6 {[%emt 0:01:27]} 20. Nf3 {[%emt 0:00:27]} Bxg5 {[%emt 0:00:41]} 21. Qxg5 {[%emt 0:00:37]} Nf6 {[%emt 0:02:11]} 22. Ne5 {[%emt 0:01:05]} Rg8 {[%emt 0:01:41]} 23. Re1 {[%emt 0:00:50]} Nf5 {[%emt 0:02:07]} 24. Nf7 {[%emt 0:01:18]} Qc6 {[%emt 0:00:58]} 25. Ne5 {[%emt 0:00:59]} Qd6 {[%emt 0:00:34]} 26. Nf7 {[%emt 0:02:01]} Qc6 {[%emt 0:00:25]} 27. Nxf5 {[%emt 0:01:21]} gxf5 {[%emt 0:01:03]} 28. Ne5 {[%emt 0:00:27]} Qd6 {[%emt 0:00:58]} 29. Nf7 {[%emt 0:00:35]} Qc6 {[%emt 0:01:05]} 30. Ne5 {[%emt 0:00:23]} Qd6 {[%emt 0:02:07]} 31. Qh4 {[%emt 0:00:42]} Rxg2 {[%emt 0:01:37]} 32. Qh3 {[%emt 0:00:21]} Rg8 {[%emt 0:00:39]} 33. Bxf5 {[%emt 0:00:27]} Bxf5 {[%emt 0:00:32]} 34. Qxf5 {[%emt 0:00:21]} Kb7 {[%emt 0:00:32]} 35. Nd3 {[%emt 0:00:37]} Ne4 {[%emt 0:00:33]} 36. Qe5 {[%emt 0:00:23]} Qd7 {[%emt 0:00:29]} 37. Nb4 {[%emt 0:00:48]} c6 {[%emt 0:00:31]} 38. Rd1 {[%emt 0:00:41]} Re8 {[%emt 0:00:29]} 39. Qd4 {[%emt 0:00:26]} a5 {[%emt 0:00:30]} 40. Nd3 {[%emt 0:00:24]} Qc7 {[%emt 0:00:38]} 41. Ne5 {[%emt 0:30:25]} Nc5 {[%emt 0:30:30]} 42. b4 {[%emt 0:00:26]} axb4 {[%emt 0:00:22]} 43. cxb4 {[%emt 0:00:21]} Ne6 {[%emt 0:00:28]} 44. Qd2 {[%emt 0:00:29]} Rf8 {[%emt 0:00:30]} 45. b5 {[%emt 0:01:04]} Rxf4 {[%emt 0:00:48]} 46. bxc6+ {[%emt 0:00:23]} Ka7 {[%emt 0:00:29]} 47. Qc3 {[%emt 0:00:29]} d4 {[%emt 0:00:36]} 48. Qa3+ {[%emt 0:00:22]} Kb8 {[%emt 0:00:27]} 49. Nd7+ {[%emt 0:00:21]} Qxd7 {[%emt 0:00:29]} 50. cxd7 {[%emt 0:00:22]} Kc7 {[%emt 0:00:22]} 51. d8=R {[%emt 0:00:30]} Nxd8 {[%emt 0:00:26]} 52. Qe7+ {[%emt 0:00:23]} Kc8 {[%emt 0:00:26]} 53. Qe5 {[%emt 0:00:24]} Rf7 {[%emt 0:00:26]} 54. Rxd4 {[%emt 0:00:24]} Rc7+ {[%emt 0:00:22]} 55. Kb2 {[%emt 0:00:22]} Nc6 {[%emt 0:00:27]} 56. Qe8+ {[%emt 0:00:21]} Kb7 {[%emt 0:00:26]} 57. Rd7 {[%emt 0:00:23]} Na5 {[%emt 0:00:24]} 58. Rxc7+ {[%emt 0:00:22]} Kxc7 {[%emt 0:00:22]} 59. Qe7+ {[%emt 0:00:21]} Kc6 {[%emt 0:00:23]} 60. Kc3 {[%emt 0:00:22]} Kb5 {[%emt 0:00:23]} 61. a4+ {[%emt 0:00:24]} Ka6 {[%emt 0:00:25]} 62. Qc7 {[%emt 0:00:26]} Nb7 {[%emt 0:00:26]} 63. Qc4+ {[%emt 0:00:25]} Ka7 {[%emt 0:00:22]} 64. Qb5 {[%emt 0:00:22]} Nd6 {[%emt 0:00:26]} 65. Qd7+ {[%emt 0:00:23]} Nb7 {[%emt 0:00:22]} 66. Kb4 {[%emt 0:00:21]} Ka6 {[%emt 0:00:23]} 67. Qc7 {[%emt 0:00:25]} Na5 {[%emt 0:00:34]} 68. Qc8+ {[%emt 0:00:23]} Ka7 {[%emt 0:00:24]} 69. Kb5 {[%emt 0:00:24]} Nb7 {[%emt 0:00:27]} 70. Qc7 {[%emt 0:00:24]} Ka8 {[%emt 0:00:29]} 71. Kxb6 {[%emt 0:00:25]} Nd6 {[%emt 0:00:24]} 72. Qa7# {[%emt 0:00:22]} 1-0

[Event "Delancey UK Schools 2019 U14"]
[Site "Daventry"]
[Date "2019.09.24"]
[Round "5.11"]
[White "Britnell, Jonathan"]
[Black "Korsinskij, Nikolas"]
[Result "1-0"]
[ECO "B98"]
[WhiteElo "1650"]
[BlackElo "1502"]
[Annotator "NA"]
[PlyCount "65"]
[EventDate "2019.09.24"]
[EventCountry "GBR"]
[SourceTitle "playchess.com"]
[Source "ChessBase"]
[SourceQuality "1"]
[TimeControl "40/5400+30:1800+30"]

1. e4 {[%emt 1:10:11]} c5 {[%emt 1:10:13]} 2. Nf3 {[%emt 0:00:22]} e6 {[%emt 0:00:25]} 3. d4 {[%emt 0:00:23]} cxd4 {[%emt 0:00:23]} 4. Nxd4 {[%emt 0:00:22]} Nf6 {[%emt 0:00:26]} 5. Nc3 {[%emt 0:00:21]} d6 {[%emt 0:00:23]} 6. Bg5 {[%emt 0:01:06]} Be7 {[%emt 0:00:29]} 7. f4 {[%emt 0:00:27]} Qc7 {[%emt 0:01:12]} 8. Qf3 {[%emt 0:00:27]} a6 {[%emt 0:01:12]} 9. O-O-O {[%emt 0:00:33]} b5 {[%emt 0:02:51]} 10. Bxf6 {[%emt 0:00:45]} Bxf6 {[%emt 0:00:40]} 11. Bxb5+ {[%emt 0:02:18]} axb5 {[%emt 0:01:21]} 12. Ndxb5 {[%emt 0:00:26]} Qd8 {[%emt 0:11:11]} 13. Nxd6+ {[%emt 0:01:23]} Kf8 {[%emt 0:00:43]} 14. e5 {[%emt 0:00:53]} Ra6 {[%emt 0:02:02]} 15. Nxf7 {[%emt 0:02:37]} Kxf7 {[%emt 0:01:44]} 16. Rxd8 {[%emt 0:00:33]} Bxd8 {[%emt 0:00:25]} 17. Rd1 {[%emt 0:01:41]} Rf8 {[%emt 0:00:40]} 18. Ne4 {[%emt 0:01:00]} Rxa2 {[%emt 0:01:24]} 19. Kb1 {[%emt 0:00:43]} Ra4 {[%emt 0:00:53]} 20. Nd6+ {[%emt 0:00:32]} Kg8 {[%emt 0:00:39]} 21. Nxc8 {[%emt 0:00:31]} Raxf4 {[%emt 0:00:23]} 22. Qb3 {[%emt 0:00:44]} Bc7 {[%emt 0:00:56]} 23. Qxe6+ {[%emt 0:00:38]} Kh8 {[%emt 0:00:24]} 24. Nd6 {[%emt 0:01:23]} Rf2 {[%emt 0:00:34]} 25. Re1 {[%emt 0:00:58]} h6 {[%emt 0:00:28]} 26. Qd5 {[%emt 0:01:18]} Na6 {[%emt 0:00:27]} 27. Qc4 {[%emt 0:02:01]} Ra8 {[%emt 0:00:39]} 28. Nf7+ {[%emt 0:00:36]} Kh7 {[%emt 0:00:26]} 29. Qe4+ {[%emt 0:00:23]} Kg8 {[%emt 0:00:31]} 30. Qxa8+ {[%emt 0:00:24]} Kxf7 {[%emt 0:00:25]} 31. Qxa6 {[%emt 0:00:30]} Bd8 {[%emt 0:00:42]} 32. Qa7+ {[%emt 0:00:26]} Kg6 {[%emt 0:00:28]} 33. Qxf2 {[%emt 0:00:23]} 1-0

[Event "Delancey UK Schools 2019 U14"]
[Site "Daventry"]
[Date "2019.09.24"]
[Round "5.13"]
[White "Jayanthi, Harshita"]
[Black "Anika Rachna Roy"]
[Result "0-1"]
[ECO "D02"]
[WhiteElo "1217"]
[BlackElo "1392"]
[Annotator "NA"]
[PlyCount "142"]
[EventDate "2019.09.24"]
[EventCountry "GBR"]
[SourceTitle "playchess.com"]
[Source "ChessBase"]
[SourceQuality "1"]
[TimeControl "40/5400+30:1800+30"]

1. d4 {[%emt 1:10:12]} d5 {[%emt 1:10:11]} 2. Bf4 {[%emt 0:00:23]} Nf6 {[%emt 0:00:22]} 3. Nf3 {[%emt 0:00:27]} Bf5 {[%emt 0:00:30]} 4. e3 {[%emt 0:00:32]} e6 {[%emt 0:00:23]} 5. Be2 {[%emt 0:01:01]} c5 {[%emt 0:00:22]} 6. c3 {[%emt 0:00:25]} Nc6 {[%emt 0:00:23]} 7. O-O {[%emt 0:00:39]} Be7 {[%emt 0:00:48]} 8. Nbd2 {[%emt 0:00:52]} O-O {[%emt 0:00:43]} 9. Ne5 {[%emt 0:00:32]} Nd7 {[%emt 0:03:00]} 10. Nxc6 {[%emt 0:01:54]} bxc6 {[%emt 0:00:24]} 11. Nf3 {[%emt 0:00:59]} f6 {[%emt 0:01:35]} 12. Nh4 {[%emt 0:02:02]} Bg6 {[%emt 0:01:01]} 13. Nxg6 {[%emt 0:00:57]} hxg6 {[%emt 0:00:22]} 14. Bd3 {[%emt 0:01:04]} Kf7 {[%emt 0:00:52]} 15. Qg4 {[%emt 0:01:40]} f5 {[%emt 0:00:23]} 16. Qf3 {[%emt 0:01:41]} Nf6 {[%emt 0:01:15]} 17. Be5 {[%emt 0:01:10]} Bd6 {[%emt 0:01:10]} 18. c4 {[%emt 0:01:26]} cxd4 {[%emt 0:03:09]} 19. exd4 {[%emt 0:01:09]} Ng4 {[%emt 0:00:40]} 20. Bg3 {[%emt 0:02:11]} Rh8 {[%emt 0:01:11]} 21. h3 {[%emt 0:00:56]} Bxg3 {[%emt 0:01:47]} 22. fxg3 {[%emt 0:00:49]} Nf6 {[%emt 0:00:47]} 23. Rad1 {[%emt 0:01:39]} Qb6 {[%emt 0:01:06]} 24. Rf2 {[%emt 0:01:09]} Rae8 {[%emt 0:01:53]} 25. cxd5 {[%emt 0:02:25]} cxd5 {[%emt 0:00:33]} 26. Qe2 {[%emt 0:01:32]} Rc8 {[%emt 0:01:38]} 27. Bb1 {[%emt 0:01:14]} Rc4 {[%emt 0:01:19]} 28. Qd2 {[%emt 0:00:52]} Rd8 {[%emt 0:01:14]} 29. b3 {[%emt 0:00:53]} Rb4 {[%emt 0:01:16]} 30. Qe3 {[%emt 0:00:39]} Qd6 {[%emt 0:01:21]} 31. Re2 {[%emt 0:01:07]} Rb6 {[%emt 0:00:36]} 32. Rf1 {[%emt 0:00:49]} Qb4 {[%emt 0:01:09]} 33. Rfe1 {[%emt 0:00:44]} Rbd6 {[%emt 0:01:07]} 34. Qf3 {[%emt 0:00:35]} Qb6 {[%emt 0:00:37]} 35. Qd3 {[%emt 0:00:28]} Ne4 {[%emt 0:00:30]} 36. Kh2 {[%emt 0:00:33]} R6d7 {[%emt 0:00:59]} 37. Qf3 {[%emt 0:00:27]} Qxd4 {[%emt 0:00:38]} 38. g4 {[%emt 0:00:37]} Qf6 {[%emt 0:00:53]} 39. Re3 {[%emt 0:00:34]} Nd2 {[%emt 0:00:47]} 40. Qf2 {[%emt 0:00:25]} Nxb1 {[%emt 0:00:22]} 41. Rxb1 {[%emt 0:30:22]} d4 {[%emt 0:30:24]} 42. Rd3 {[%emt 0:00:21]} Qe5+ {[%emt 0:00:24]} 43. Kg1 {[%emt 0:00:25]} Qe4 {[%emt 0:00:34]} 44. Rbd1 {[%emt 0:00:25]} e5 {[%emt 0:00:17]} 45. gxf5 {[%emt 0:00:23]} gxf5 {[%emt 0:00:40]} 46. Rf3 {[%emt 0:00:27]} g6 {[%emt 0:00:29]} 47. Rdd3 {[%emt 0:00:35]} Qd5 {[%emt 0:00:31]} 48. Qh4 {[%emt 0:00:27]} e4 {[%emt 0:00:32]} 49. Qh7+ {[%emt 0:00:30]} Kf6 {[%emt 0:00:28]} 50. Qh4+ {[%emt 0:00:25]} Kg7 {[%emt 0:00:25]} 51. Rg3 {[%emt 0:00:31]} exd3 {[%emt 0:00:26]} 52. Qg5 {[%emt 0:00:32]} Qe6 {[%emt 0:00:25]} 53. Rxd3 {[%emt 0:00:25]} Qf6 {[%emt 0:00:30]} 54. Qf4 {[%emt 0:00:24]} Re7 {[%emt 0:00:40]} 55. Kh2 {[%emt 0:00:24]} Qe5 {[%emt 0:00:25]} 56. Qg3 {[%emt 0:00:25]} Qxg3+ {[%emt 0:00:22]} 57. Kxg3 {[%emt 0:00:22]} Re3+ {[%emt 0:00:21]} 58. Rxe3 {[%emt 0:00:22]} dxe3 {[%emt 0:00:21]} 59. Kf3 {[%emt 0:00:22]} Rd2 {[%emt 0:00:24]} 60. Kxe3 {[%emt 0:00:23]} Rxa2 {[%emt 0:00:22]} 61. b4 {[%emt 0:00:28]} Rxg2 {[%emt 0:00:22]} 62. Kf3 {[%emt 0:00:24]} Rb2 {[%emt 0:00:23]} 63. h4 {[%emt 0:00:24]} Rxb4 {[%emt 0:00:21]} 64. Kg3 {[%emt 0:00:25]} Kf6 {[%emt 0:00:24]} 65. Kh3 {[%emt 0:00:24]} Rg4 {[%emt 0:00:23]} 66. Kh2 {[%emt 0:00:31]} Ke5 {[%emt 0:00:21]} 67. Kh3 {[%emt 0:00:28]} Kf4 {[%emt 0:00:22]} 68. h5 {[%emt 0:00:24]} gxh5 {[%emt 0:00:24]} 69. Kh2 {[%emt 0:00:23]} Kf3 {[%emt 0:00:25]} 70. Kh1 {[%emt 0:00:23]} Kf2 {[%emt 0:00:22]} 71. Kh2 {[%emt 0:00:22]} Rh4# {[%emt 0:00:21]} 0-1

[Event "Delancey UK Schools 2019 U14"]
[Site "Daventry"]
[Date "2019.09.24"]
[Round "6.1"]
[White "Balaji, Aaravamudhan"]
[Black "Yoon, Jacob D"]
[Result "1-0"]
[ECO "D31"]
[WhiteElo "2086"]
[BlackElo "2086"]
[Annotator "NA"]
[PlyCount "67"]
[EventDate "2019.09.24"]
[EventCountry "GBR"]
[SourceTitle "playchess.com"]
[Source "ChessBase"]
[SourceQuality "1"]
[TimeControl "40/5400+30:1800+30"]

1. d4 {[%emt 1:10:11]} d5 {[%emt 1:10:10]} 2. c4 {[%emt 0:00:21]} e6 {[%emt 0:00:21]} 3. Nc3 {[%emt 0:00:23]} c6 {[%emt 0:00:21]} 4. Nf3 {[%emt 0:00:25]} dxc4 {[%emt 0:00:20]} 5. a4 {[%emt 0:00:21]} Bb4 {[%emt 0:00:37]} 6. Bd2 {[%emt 0:00:39]} Bxc3 {[%emt 0:00:38]} 7. Bxc3 {[%emt 0:00:29]} b5 {[%emt 0:00:56]} 8. e3 {[%emt 0:00:40]} a5 {[%emt 0:02:22]} 9. axb5 {[%emt 0:00:27]} cxb5 {[%emt 0:00:22]} 10. b3 {[%emt 0:00:21]} Bb7 {[%emt 0:00:21]} 11. bxc4 {[%emt 0:00:33]} b4 {[%emt 0:00:22]} 12. Bb2 {[%emt 0:00:39]} Nf6 {[%emt 0:01:53]} 13. Bd3 {[%emt 0:00:50]} O-O {[%emt 0:00:43]} 14. O-O {[%emt 0:00:23]} Nbd7 {[%emt 0:00:43]} 15. Re1 {[%emt 0:00:39]} Ne4 {[%emt 0:01:06]} 16. Qc2 {[%emt 0:01:34]} f5 {[%emt 0:02:21]} 17. c5 {[%emt 0:01:11]} Bc6 {[%emt 0:02:17]} 18. Bc4 {[%emt 0:04:07]} Qe8 {[%emt 0:02:47]} 19. Bb3 {[%emt 0:02:20]} Qe7 {[%emt 0:04:35]} 20. Ba4 {[%emt 0:04:00]} Bd5 {[%emt 0:01:15]} 21. Bb3 {[%emt 0:00:37]} Bc6 {[%emt 0:02:23]} 22. Ba4 {[%emt 0:00:30]} Bd5 {[%emt 0:00:21]} 23. Bb3 {[%emt 0:00:21]} Bxb3 {[%emt 0:02:17]} 24. Qxb3 {[%emt 0:00:21]} g5 {[%emt 0:00:20]} 25. Qc2 {[%emt 0:03:43]} a4 {[%emt 0:01:04]} 26. Rxa4 {[%emt 0:04:34]} Rxa4 {[%emt 0:00:42]} 27. Qxa4 {[%emt 0:00:24]} g4 {[%emt 0:00:21]} 28. Ne5 {[%emt 0:00:55]} Nxe5 {[%emt 0:00:22]} 29. dxe5 {[%emt 0:00:22]} Qxc5 {[%emt 0:00:46]} 30. Rc1 {[%emt 0:01:04]} Qd5 {[%emt 0:01:34]} 31. Qxb4 {[%emt 0:00:51]} Qd3 {[%emt 0:00:23]} 32. Qc4 {[%emt 0:01:01]} Qd2 {[%emt 0:00:41]} 33. Qc2 {[%emt 0:00:42]} Rd8 {[%emt 0:00:32]} 34. Bd4 {[%emt 0:00:48]} 1-0

[Event "Delancey UK Schools 2019 U14"]
[Site "Daventry"]
[Date "2019.09.24"]
[Round "6.2"]
[White "Woltery, Nicolai"]
[Black "Ratnesan, Ranesh"]
[Result "0-1"]
[ECO "A26"]
[WhiteElo "1864"]
[BlackElo "2180"]
[Annotator "ChessBase"]
[PlyCount "66"]
[EventDate "2019.09.24"]
[EventCountry "GBR"]
[SourceTitle "playchess.com"]
[Source "ChessBase"]
[SourceQuality "1"]
[TimeControl "40/5400+30:1800+30"]

1. c4 {[%emt 1:10:11]} e5 {[%emt 1:10:16]} 2. Nc3 {[%emt 0:00:22]} Nc6 {[%emt 0:00:26]} 3. g3 {[%emt 0:00:28]} g6 {[%emt 0:00:48]} 4. Bg2 {[%emt 0:00:28]} Bg7 {[%emt 0:00:28]} 5. Nf3 {[%emt 0:00:41]} Nf6 {[%emt 0:00:34]} 6. O-O {[%emt 0:00:31]} O-O {[%emt 0:00:24]} 7. d3 {[%emt 0:00:38]} d6 {[%emt 0:00:41]} 8. Bd2 {[%emt 0:01:00]} h6 {[%emt 0:00:51]} 9. a3 {[%emt 0:00:34]} a5 {[%emt 0:00:26]} 10. Rb1 {[%emt 0:00:30]} Be6 {[%emt 0:00:59]} 11. b4 {[%emt 0:04:28]} axb4 {[%emt 0:01:26]} 12. axb4 {[%emt 0:00:25]} Ne7 {[%emt 0:00:59]} 13. e4 {[%emt 0:03:40]} Bg4 {[%emt 0:01:26]} 14. Qc1 {[%emt 0:00:43]} Kh7 {[%emt 0:01:51]} 15. Ne1 {[%emt 0:01:10]} c6 {[%emt 0:01:38]} 16. f3 {[%emt 0:03:35]} Be6 {[%emt 0:04:25]} 17. f4 {[%emt 0:01:05]} exf4 {[%emt 0:01:57]} 18. Bxf4 {[%emt 0:00:59]} d5 {[%emt 0:01:07]} 19. c5 {[%emt 0:02:23]} dxe4 {[%emt 0:00:59]} 20. Nxe4 {[%emt 0:00:57]} Nxe4 {[%emt 0:01:02]} 21. dxe4 {[%emt 0:00:46]} Ra2 {[%emt 0:01:41]} 22. Nf3 {[%emt 0:01:37]} f5 {[%emt 0:01:52]} 23. Rd1 {[%emt 0:02:31]} Qe8 {[%emt 0:00:31]} 24. e5 {[%emt 0:00:56]} Nd5 {[%emt 0:00:30]} 25. Nd4 {[%emt 0:00:41]} g5 {[%emt 0:01:15]} 26. Bd2 {[%emt 0:00:53]} Bxe5 {[%emt 0:00:48]} 27. Nxe6 {[%emt 0:00:33]} Qxe6 {[%emt 0:00:22]} 28. Qc4 {[%emt 0:00:43]} Rfa8 {[%emt 0:00:55]} 29. Bxd5 {[%emt 0:00:46]} cxd5 {[%emt 0:00:25]} 30. Qd3 {[%emt 0:00:29]} R8a3 {[%emt 0:00:50]} 31. Qb5 {[%emt 0:00:34]} Bd4+ {[%emt 0:00:26]} 32. Kf1 {[%emt 0:00:27]} Rf3+ {[%emt 0:00:37]} 33. Kg2 {[%emt 0:00:22]} Rf2+ {[%emt 0:00:25]} 0-1